Cogmind - Beta 15 @@@ ROGUE MODE // 2025.06.01 @ 06:02:18 Player: Wyvric Result: Destroyed by G-67 Veteran with Plasma Rifle Performance ------------- Evolutions (6) 3000 Regions Visited (25) 5000 Robots Destroyed (491) 2455 Value Destroyed (23445) 23445 Prototype IDs (235) 4700 Alien Tech Used (1) 200 Bonus (18475) 18475 TOTAL SCORE: 57275 Bonus ------- High Alert Combat Kills 777 Follower Combat Kills 1658 Network Hubs Disabled 800 Met Data Miner 300 Used Data Conduit 3000 Destroyed Z-Imprinter 1000 MAIN.C Attacked Warlord 500 Warlord Defense Kills 7840 Built Enhanced Grunts 300 A7 Reached Mainframe 300 Met R17 at Cetus 500 Pursued by Intercept 1500 Cogmind --------- Core Integrity 0/1150 Matter 300/300 Energy 91/100 System Corruption 24% Temperature Warning (300) Movement Treading (168) Location -4/Warlord Parts ------- > --- POWER (3) -------- (None) > --- PROPULSION (6) --- Treaded Centrium Exoskeleton > --- UTILITY (7) ------ Huge Storage Unit Experimental Targeting Computer > --- WEAPON (4) ------- (None) > --- INVENTORY (25) --- Advanced VSS Leg Advanced VSS Leg Advanced VSS Leg Faulty Cooled Nuclear Pulse Thruster Experimental Heat Sink Experimental Heat Sink Makeshift Microdissipator Network Cargo Storage Unit Zionite Biocell (600) Zionite Metafield Generator Long-range Sensor Array Experimental Reaction Control System Graphene Brace Experimental EM Shield Deep Network Scanner Quantum Router Dimensional Node Initializer Peak State ------------ > --- POWER ------------ Quantum Reactor Antimatter-Fission Reactor > --- PROPULSION ------- Treaded Centrium Exoskeleton > --- UTILITY ---------- Armored Scrap Engine Experimental Heat Sink Experimental Heat Sink Cargo Storage Unit Experimental EM Shield > --- WEAPON ----------- Kinetic Autocannon Construct/C > --- INVENTORY -------- Enhanced Armored Leg Cooled Nuclear Pulse Thruster Makeshift Microdissipator Network Makeshift Microdissipator Network Huge Storage Unit Zionite Biocell Zionite Metafield Generator Long-range Sensor Array Advanced Signal Interpreter IFF Parser Weapon Mount Weapon Mount Precision Matter Filter Improved Transmission Jammer Advanced ECM Suite Experimental Reaction Control System Improved Phase Shifter Experimental Phase Shifter Centrium Medium Armor Plating Centrium Medium Armor Plating Graphene Brace Improved Shield Generator Deep Network Scanner Quantum Router Drone Bay Dimensional Node Initializer High-powered Shock Rifle Linked Autogun Hardcell Cannon [Rating: 161] Favorites ----------- Power Constructs Engine Improved Ion Engine Power Core Reinforced Fission Core Reactor Constructs Propulsion Constructs Treads Constructs Wheel Compact Wheel Utility Armored Scrap Engine Device Armored Scrap Engine Storage Huge Storage Unit Processor Experimental Targeting Computer Hackware Hacking Suite Protection Centrium Medium Armor Plating Weapon Constructs Energy Gun Gatling Laser Energy Cannon Phase Cannon Ballistic Gun Assault Rifle Ballistic Cannon Constructs Launcher Improved Proton Missile Launcher Special Weapon RU-N14's Throwing Claymores Impact Weapon Heavy Hammer Slashing Weapon Greatsword Piercing Weapon Spear Build | -11 -10 -10 -9 -9 -9 -7 -7 -7 -7 -6 -6 -6 -6 -6 -6 -5 -5 -5 -5 -5 -5 -4 -4 -4 -4 ------- Run | Yrd Mat Min Mat Sto Rec Fac Low Low Dat Pro Fac Low Low Zio Dee Pro Fac Ext Cet Arc Hub Fac Upp Upp War Slots Evolved 12 | . . . 2 . . 4 . . . . 2 . . . . . 2 . . . . 2 . . . Power 2 | . . . . . . . . . . . . . . . . . 1 . . . . 1 . . . Propulsion 3 | . . . 1 . . 2 . . . . . . . . . . . . . . . . . . . Utility 5 | . . . 1 . . 1 . . . . 1 . . . . . 1 . . . . 1 . . . Weapon 2 | . . . . . . 1 . . . . 1 . . . . . . . . . . . . . . Parts Attached 183 | 7 14 2 16 19 5 6 5 9 6 1 6 4 9 15 14 1 7 3 2 2 5 5 1 3 16 Power 14 | 1 1 . 1 1 . . . . 1 . . . . . 1 . 2 . . . . 1 1 . 4 Engine 6 | 1 1 . 1 1 . . . . 1 . . . . . . . 1 . . . . . . . . Core 4 | . . . . . . . . . . . . . . . . . 1 . . . . . 1 . 2 Reactor 4 | . . . . . . . . . . . . . . . 1 . . . . . . 1 . . 2 Propulsion 20 | 2 4 . 5 5 3 . . . . . . . 1 . . . . . . . . . . . . Treads 1 | . . . . . . . . . . . . . 1 . . . . . . . . . . . . Leg . | . . . . . . . . . . . . . . . . . . . . . . . . . . Wheel 19 | 2 4 . 5 5 3 . . . . . . . . . . . . . . . . . . . . Hover . | . . . . . . . . . . . . . . . . . . . . . . . . . . Flight . | . . . . . . . . . . . . . . . . . . . . . . . . . . Utility 83 | 1 3 1 4 4 2 4 5 2 2 1 1 1 2 8 9 1 5 3 2 2 5 4 . 3 8 Device 47 | . 1 . 2 . 1 1 5 1 2 1 1 1 2 4 5 1 2 3 1 2 3 2 . 2 4 Storage 7 | 1 1 . . . 1 1 . . . . . . . . 1 . 1 . . . . 1 . . . Processor 8 | . 1 1 1 . . 1 . . . . . . . . . . 2 . . . . . . . 2 Hackware 3 | . . . . . . 1 . . . . . . . . . . . . . . 2 . . . . Protection 18 | . . . 1 4 . . . 1 . . . . . 4 3 . . . 1 . . 1 . 1 2 Artifact . | . . . . . . . . . . . . . . . . . . . . . . . . . . Weapon 66 | 3 6 1 6 9 . 2 . 7 3 . 5 3 6 7 4 . . . . . . . . . 4 Energy Gun 19 | 2 2 . 2 2 . . . . 2 . . . 2 1 3 . . . . . . . . . 3 Energy Cannon 6 | . . 1 . 1 . . . 3 . . . . 1 . . . . . . . . . . . . Ballistic Gun 13 | 1 3 . . 3 . . . 1 . . . 1 1 2 . . . . . . . . . . 1 Ballistic Cannon 12 | . . . 3 1 . 1 . 1 . . 3 2 . . 1 . . . . . . . . . . Launcher 4 | . 1 . 1 1 . . . . . . . . 1 . . . . . . . . . . . . Special Weapon 5 | . . . . . . . . . . . 1 . . 4 . . . . . . . . . . . Impact Weapon 1 | . . . . 1 . . . . . . . . . . . . . . . . . . . . . Slashing Weapon 5 | . . . . . . 1 . 1 1 . 1 . 1 . . . . . . . . . . . . Piercing Weapon 1 | . . . . . . . . 1 . . . . . . . . . . . . . . . . . Special Melee Weapon . | . . . . . . . . . . . . . . . . . . . . . . . . . . Unidentified Prototypes 20 | . . . . 5 1 . 1 1 . . 1 . 1 2 8 . . . . . . . . . . Parts Lost 72 | . 4 . 6 10 4 . . 1 5 . . . 1 3 4 1 . . . . 1 1 . 1 30 Power 10 | . . . 1 1 . . . . 1 . . . . . . . . . . . . . . . 7 Propulsion 14 | . 2 . 3 5 2 . . . . . . . . . . . . . . . . . . . 2 Utility 29 | . 1 . 1 3 1 . . . 1 . . . 1 2 4 . . . . . 1 1 . 1 12 Weapon 19 | . 1 . 1 1 1 . . 1 3 . . . . 1 . 1 . . . . . . . . 9 Highest Loss Streak 17 | . 2 . 3 5 4 . . 1 4 . . . 1 1 2 1 . . . . 1 1 . 1 17 To Critical Strikes 1 | . . . . . . . . . . . . . . . . . . . . . . . . . 1 Average Backups 23 | 3 11 14 14 13 15 19 24 24 22 23 24 24 24 22 24 24 24 24 24 24 24 27 29 29 24 Power 1 | . 1 1 . . . . 1 1 . 1 . . 1 3 3 2 1 1 . 1 1 . . . . Propulsion 4 | 2 6 7 5 2 4 4 3 3 4 5 6 7 5 3 4 5 2 3 4 2 2 2 5 4 4 Utility 12 | . . . 1 1 3 6 9 10 12 14 12 9 10 10 10 11 15 17 14 17 17 20 22 21 18 Weapon 4 | 1 3 5 6 9 6 8 10 9 4 3 4 8 7 4 5 3 3 1 3 2 1 2 1 2 1 Tool/Special . | . . . . . . . . . . . . . . . . . . . . . . . . . . Unused Backups 182 | . 1 1 2 . 12 13 5 13 2 1 8 3 9 29 13 3 9 10 7 5 5 10 2 2 17 Power 21 | . 1 . . . 1 1 . 1 . . 1 . . 8 5 1 1 . 1 . . . . . . Propulsion 68 | . . 1 . . 6 4 2 7 1 . 3 . 5 13 4 1 4 6 3 . 1 2 . 1 4 Utility 40 | . . . 1 . 2 1 2 2 1 1 4 . 1 2 2 . 2 2 3 1 1 5 . 1 6 Weapon 52 | . . . 1 . 3 7 1 3 . . . 3 3 6 2 1 2 2 . 4 3 3 2 . 6 Tool/Special 1 | . . . . . . . . . . . . . . . . . . . . . . . . . 1 Average Slot Usage (%) 53 | . 94 86 98 89 74 52 53 52 55 53 57 56 50 47 49 46 43 44 43 43 43 42 44 44 44 Engine 3 | . 14 14 10 10 10 6 3 7 7 7 5 5 4 2 5 . . 2 . . . . . . . Core 1 | . . . . . . . 3 . . . . . 1 2 . 1 2 1 . . . . . 1 2 Reactor 2 | . . . . . . . . . . . . . . . . 3 2 1 5 5 5 6 9 8 5 Treads 1 | . . . . . . . . . 1 7 6 6 2 3 1 . 2 1 . . . . . . 3 Leg 1 | . . . . . . . 2 4 5 . . . . 1 4 5 2 2 . . . . 4 5 1 Wheel 4 | . 27 28 32 31 22 5 5 2 . . . . 3 . . . . . . . . . . . . Device 14 | . . . 10 2 8 11 15 11 11 15 19 20 17 12 14 18 16 16 11 15 19 20 20 18 16 Storage 6 | . 14 14 11 11 11 7 7 7 7 7 6 6 6 6 6 6 5 5 5 5 5 5 5 5 5 Processor 1 | . 8 1 1 . . . . . . . . . . . . . 4 5 5 5 . . . . 2 Protection 1 | . . . 8 11 5 . . 2 3 . . . . 4 3 . . . 3 . . 1 . 1 2 Energy Cannon 3 | . . 1 10 3 3 4 7 7 2 6 . 1 . 3 4 1 2 5 1 . 3 4 4 2 . Ballistic Gun 2 | . 26 26 . 7 6 . . . 1 . . . . 2 . . . . . . . . . . . Ballistic Cannon 4 | . . . 9 7 3 3 6 4 6 . 10 13 7 2 4 4 2 . 3 5 1 . . 2 4 Peak Build Rating 161 | 6 11 14 19 23 40 59 67 68 73 72 97 92 91 100 110 117 115 127 132 132 149 161 159 157 159 Average Rating 91 | 4 8 9 15 15 32 50 58 62 66 66 88 87 83 87 101 102 96 117 128 127 141 151 157 147 141 On Entrance 80 | . 6 8 14 15 23 40 59 59 65 69 72 92 88 85 98 109 87 115 119 132 127 149 156 157 146 Naked Turns . | . . . . . . . . . . . . . . . . . . . . . . . . . . Heaviest Build 220 | 13 34 35 45 48 56 103 111 113 112 113 134 134 129 122 115 114 114 114 125 124 127 205 213 219 220 Greatest Support 281 | 26 32 32 48 42 48 82 78 117 157 175 175 175 175 188 188 222 154 184 184 184 184 184 184 281 281 Greatest Overweight (x) 3 | 1 3 1 2 1 1 1 1 1 . . . . 1 1 . . . . . . . 1 1 1 . Average Overweight (x) . | . . . . . . . 1 . . . . . . . . . . . . . . . 1 . . Largest Inventory Capacity 30 | 8 15 15 15 15 20 25 25 25 25 25 25 25 25 25 25 25 25 25 25 25 25 30 30 30 30 Average Capacity 24 | 7 14 15 15 15 17 20 25 25 25 25 25 25 25 25 25 25 25 25 25 25 25 28 30 30 27 Most Carried 30 | 8 15 15 15 15 20 21 25 25 25 25 25 25 25 25 25 25 25 25 25 25 25 30 30 30 30 Average Carried 23 | 4 11 14 14 13 15 19 24 24 24 24 24 24 24 22 24 24 24 24 24 24 24 28 29 29 25 Final Capacity 30 | 8 15 15 15 15 20 25 25 25 25 25 25 25 25 25 25 25 25 25 25 25 25 30 30 30 25 Final Carried 30 | 8 13 15 15 14 20 21 25 25 25 25 24 25 25 25 24 23 25 25 25 25 25 30 30 30 18 Scrap Engine Consumption 382 | . . . . . 39 22 10 20 5 3 19 13 22 40 24 29 17 28 9 9 7 13 5 8 40 Constructs Created 14 | . . . . . 3 . . . 1 . . 1 . 4 1 2 . . . . . . . . 2 Constructs Modified 146 | . . . . . 6 13 6 9 1 2 2 7 8 11 8 16 9 13 2 1 4 6 6 4 12 Class Distribution -------------------- 66% | Construct 15% | Hauler-Construct 9% | Mutant 5% | Commander-Construct Dominant Class ---------------- Mutant | -10/Materials Mutant | -10/Mines Mutant | -9/Materials Scavenger-Mutant | -9/Storage Construct | -9/Recycling Construct | -7/Factory Construct | -7/Lower Caves Construct | -7/Lower Caves Construct | -7/Data Miner Construct | -6/Proximity Caves Construct | -6/Factory Construct | -6/Lower Caves Construct | -6/Lower Caves Construct | -6/Zion Construct | -6/Deep Caves Construct | -5/Proximity Caves Construct | -5/Factory Construct | -5/Extension Commander-Construct | -5/Cetus Commander-Construct | -5/Archives Construct | -5/Hub_04(d) Hauler-Construct | -4/Factory Hauler-Construct | -4/Upper Caves Hauler-Construct | -4/Upper Caves Hauler-Construct | -4/Warlord Resources | -11 -10 -10 -9 -9 -9 -7 -7 -7 -7 -6 -6 -6 -6 -6 -6 -5 -5 -5 -5 -5 -5 -4 -4 -4 -4 ----------- Run | Yrd Mat Min Mat Sto Rec Fac Low Low Dat Pro Fac Low Low Zio Dee Pro Fac Ext Cet Arc Hub Fac Upp Upp War Matter Collected 9988 | 212 477 57 399 608 349 271 250 673 271 278 104 342 354 1300 301 298 238 833 84 88 435 646 117 219 784 Remotely 68 | . . . . . . . . . . . . . . . . . 68 . . . . . . . . Salvage Created 25333 | 162 654 45 722 1241 1819 494 606 513 339 262 415 138 219 2503 728 1140 322 1607 352 422 1284 2430 402 651 5863 Parts 1237 | 16 43 3 49 63 78 16 19 23 14 11 14 13 15 172 53 69 22 96 16 17 59 95 16 40 205 Haulers Intercepted 7 | . 1 . . 1 2 . 1 . . . . . . . . . . . . . . 2 . . . Recyclers Shooed 10 | 1 1 . . . 5 1 . . . . . . . . . . 2 . . . . . . . . Parts Field Recycled . | . . . . . . . . . . . . . . . . . . . . . . . . . . Retrieved Matter . | . . . . . . . . . . . . . . . . . . . . . . . . . . Parts Self-Destructed 138 | . . . . . . . 23 9 . 6 . 9 12 . . 30 . . . . . . 7 42 . Prevented 44 | . . . . . . . . . . . . . 6 . . 36 . . . . . . . 2 . Kills | -11 -10 -10 -9 -9 -9 -7 -7 -7 -7 -6 -6 -6 -6 -6 -6 -5 -5 -5 -5 -5 -5 -4 -4 -4 -4 ------- Run | Yrd Mat Min Mat Sto Rec Fac Low Low Dat Pro Fac Low Low Zio Dee Pro Fac Ext Cet Arc Hub Fac Upp Upp War Combat Hostiles Destroyed 364 | . 15 1 21 26 10 8 11 18 4 4 5 7 4 13 14 21 7 21 5 3 19 29 3 14 81 Melee 4 | . . . . . . . . . . . 4 . . . . . . . . . . . . . . Guns 39 | . 12 . 1 11 9 . . 1 2 . . . . . . . . . . . . . . . 3 Cannons 257 | . . 1 14 2 . 7 7 7 1 1 1 7 2 11 14 9 7 21 5 3 19 29 3 14 72 AOE 53 | . 3 . 6 13 1 . 3 10 . 3 . . 2 2 . 10 . . . . . . . . . Classes Destroyed 34 | 2 3 . 4 1 4 1 1 3 . 4 . . . 2 2 2 1 2 . . . . . . 2 Worker 4 | . . . 1 1 . 1 . . . . . . . . . . . . . . 1 . . . . Builder 12 | . . . 1 2 3 1 . . . . . . . . . . . 4 . . 1 . . . . Tunneler 4 | 4 . . . . . . . . . . . . . . . . . . . . . . . . . Hauler 7 | . 1 . . 1 2 . 1 . . . . . . . . . . . . . . 2 . . . Recycler 22 | 1 3 . . 3 10 2 . . . . 1 . . . . . . 2 . . . . . . . Minesweeper 4 | . . . . . . . . . . 2 . . 1 . . . . . . . . . . 1 . Mechanic 1 | . . . . 1 . . . . . . . . . . . . . . . . . . . . . Operator 6 | . . . . . . . . . . . . . . . . . 1 2 . 1 1 1 . . . Drone 4 | . . . . . . . . . . 2 . . . . . 2 . . . . . . . . . Watcher 5 | . . . 1 1 . . . . . . . . . . . . . 1 . . . 2 . . . Swarmer 59 | . 6 . 6 4 1 . . 3 . . . 6 3 . . 6 4 5 . . . . . 10 5 Saboteur 1 | . . . . . . . . . . . . . . . . . . 1 . . . . . . . Grunt 117 | . 9 1 6 16 2 6 7 4 . . 3 . . . . 4 . 7 . . 9 16 . 2 25 Brawler 8 | . . . . . 1 . 1 1 . . . . . . . 1 . 2 . . . . . . 2 Duelist 4 | . . . . . 1 . 1 . . . . . . . . 1 . . . . . . . . 1 Protector 4 | . . . . . . . . . . . . . . . . 1 . . . . 1 . . . 2 Sentry 36 | . . . 9 6 2 1 1 . . . 2 1 . . . 1 1 3 . 3 2 4 . . . Demolisher 1 | . . . . . . . . . . . . . . . . . . 1 . . . . . . . Specialist 4 | . . . . . . . . . . 1 . . . . . . . . . . . . . . 3 Hunter 13 | . . . . . . . . . . . . . . . . 4 1 . . . 1 2 2 . 3 Programmer 23 | . . . . . . 1 . 2 . 1 . . 1 . . . . . . . 2 3 . 2 11 Behemoth 4 | . . . . . . . 1 . . . . . . . . 1 . 2 . . . . . . . Cetus Guard 5 | . . . . . . . . . . . . . . . . . . . 5 . . . . . . Enhanced Grunt 5 | . . . . . . . . . 4 . . . . . . . . . . 1 . . . . . Lightning 1 | . . . . . . . . . . . . . . . . . . . . . 1 . . . . Tracker 5 | . . . . . . . . . . . . . . . . . 1 . . . 2 2 . . . Combat Programmer 3 | . . . . . . . . . . . . . . . . . . . . . 1 2 . . . Striker 2 | . . . . . . . . . . . . . . . . . . . . . . . . . 2 Executioner 2 | . . . . . . . . . . . . . . . . . . . . . . . . . 2 Scientist 2 | . . . . . 2 . . . . . . . . . . . . . . . . . . . . Scrapper 3 | . . . . . 3 . . . . . . . . . . . . . . . . . . . . Zionite 87 | . . . . . . . . . . . . . . 87 . . . . . . . . . . . Z-Light 10 | . . . . . . . . . . . . . . . 10 . . . . . . . . . . Decomposer 2 | . . . . . . . . 1 . . . . . . . . . . . . . . 1 . . Samaritan 8 | . . . . . . . . . . 2 . . 1 . . . . . . . . . 2 3 . Tinkerer 6 | . . . . . . . . . . . . . . 6 . . . . . . . . . . . Thief 1 | . . . . . . . . 1 . . . . . . . . . . . . . . . . . Assembled 3 | . . . . . . . . . . . . . . . 3 . . . . . . . . . . Surgeon 1 | . . . . . . . . . . . . . . 1 . . . . . . . . . . . Thug 9 | . . . . . . . . 1 . . . . . 1 . . . 1 . . . . . . 6 Savage 4 | . . . . . . . . . . . . . . 1 . . . . . . . . . . 3 Butcher 9 | . . . . . . . . 5 . . . . . 4 . . . . . . . . . . . Bouncer 9 | . . . . . . . . . . . . . . . . . . . . . . . . . 9 Wizard 1 | . . . . . . . . . . . . . . . . . . . . . . . . . 1 Marauder 4 | . . . . . . . . . . . . . . 2 . . . . . . . . . . 2 Fireman 1 | . . . . . . . . 1 . . . . . . . . . . . . . . . . . Mutant 8 | . . . . . . . . 1 . . . . . 5 . . . . . . . . 1 . 1 Sapper 2 | . . . . . . . . . . . . . . . . . . . . . . . . . 2 Best Kill Streak 27 | 5 4 1 7 11 5 4 7 4 2 2 2 4 2 8 5 10 5 6 3 4 10 4 1 4 27 Combat Bots Only 27 | . 4 1 6 5 3 3 7 4 2 2 2 4 2 2 5 10 4 4 3 3 9 4 1 4 27 Max Kills in Single Turn 5 | 1 3 1 3 5 2 1 1 2 1 1 1 1 2 4 2 2 1 1 1 1 2 1 1 1 2 Gunslinging . | . . . . . . . . . . . . . . . . . . . . . . . . . . Exploded 4 | . 3 . 3 4 1 . 1 2 . 1 . . 2 1 . 1 . . . . . . . . . Melee 1 | . . . . . . . . . . . 1 . . . . . . . . . . . . . . Uniques/NPCs Destroyed 3 | . . . . . . . . . 1 . . . . . 1 . . . . . . . . . 1 Data Miner (-7/Data Miner) Z-Imprinter (-6/Deep Caves) Warlord (-4/Warlord) Combat | -11 -10 -10 -9 -9 -9 -7 -7 -7 -7 -6 -6 -6 -6 -6 -6 -5 -5 -5 -5 -5 -5 -4 -4 -4 -4 -------- Run | Yrd Mat Min Mat Sto Rec Fac Low Low Dat Pro Fac Low Low Zio Dee Pro Fac Ext Cet Arc Hub Fac Upp Upp War Hostile Shots Fired 2356 | . 82 1 87 99 27 40 22 58 46 10 39 33 31 302 103 89 32 93 6 9 87 123 57 69 811 Missed 703 | . 17 1 24 24 6 12 6 13 14 4 14 7 12 130 31 46 19 41 2 1 30 38 30 29 152 Hits 1653 | . 65 . 63 75 21 28 16 45 32 6 25 26 19 172 72 43 13 52 4 8 57 85 27 40 659 Melee 42 | . . . . . . . 2 4 . . . . . 20 . 2 . 11 . . . . . . 3 Projectile 1611 | . 65 . 63 75 21 28 14 41 32 6 25 26 19 152 72 41 13 41 4 8 57 85 27 40 656 AOE 7 | . . . . 1 . . . . . . . . . 1 . . . 2 . . . . . . 3 Critical Strikes 79 | . . . 3 . 3 . . 2 . . . 2 . 8 . 1 1 4 3 . 4 1 2 1 44 Actively Blocked 1 | . . . 1 . . . . . . . . . . . . . . . . . . . . . . Part Disruptions 2 | . . . . . . . . . . 1 . . . . . . . . . . . . . . 1 Damage Taken 32349 | . 685 . 747 1014 578 262 207 829 1313 81 217 248 258 2867 2179 916 246 1414 152 208 990 1831 294 737 14076 Core 2415 | . 95 . 117 207 52 44 23 138 43 . 42 7 17 209 102 36 . 32 42 22 23 142 11 22 989 Absorbed by Shields 1270 | . . . 160 . . 85 65 79 . 27 62 108 21 . . . . 117 58 . . . . . 488 Reduced by Siege Mode 828 | . . . . . . . . . . . . . . . . . . . . . . . . . 828 Redirected to Shielding 243 | . . . 46 1 . . . . . . . . . . 90 . . . . . . . . . 106 Ignored by Resistances 943 | . . . . . . . . . 171 . 39 . . 49 294 . 4 . . . 200 186 . . . Regen/Repaired (Parts) 14752 | . . . . . 159 145 146 356 322 151 234 56 220 2110 850 1516 115 948 93 42 1161 1831 1061 901 2335 Core Remaining (%) 61 | 100 . 62 . . 6 . . . . 64 . . . . . 51 . . . . 88 . . . . Volleys Fired 1243 | 12 51 2 49 52 74 35 32 67 35 12 6 15 15 225 43 40 17 65 15 7 50 93 19 29 183 Largest 4 | 2 2 2 2 2 2 1 1 1 3 1 1 3 1 2 1 2 1 1 1 1 1 1 1 1 4 Hottest 266 | 80 130 95 130 91 60 66 66 85 205 82 82 164 88 88 84 127 146 146 220 220 220 220 220 220 266 Shots Fired 1465 | 24 96 4 94 102 104 35 32 67 55 12 6 28 15 226 43 41 17 65 15 6 50 93 19 29 187 Gun 316 | 24 92 3 13 50 92 . . 1 19 . . . . 11 . . . . . . . . . . 11 Cannon 1056 | . . 1 77 39 12 35 29 43 36 2 6 28 11 204 43 20 17 65 15 6 50 93 19 29 176 Launcher 82 | . 4 . 4 13 . . 3 23 . 10 . . 4 . . 21 . . . . . . . . . Special 11 | . . . . . . . . . . . . . . 11 . . . . . . . . . . . Kinetic 745 | 9 80 3 43 75 59 5 2 17 29 2 6 26 11 78 15 19 14 . 15 6 40 . 10 9 172 Thermal 456 | 12 12 1 47 14 . 30 27 18 26 . . 2 . 137 28 1 . . . . . 69 9 20 3 Explosive 68 | . 4 . 4 13 . . 3 23 . 10 . . . 11 . . . . . . . . . . . Electromagnetic 94 | 3 . . . . 45 . . 9 . . . . 4 . . 21 . . . . . . . . 12 Phasic 102 | . . . . . . . . . . . . . . . . . 3 65 . . 10 24 . . . Robot Hit Streak 42 | 6 15 3 11 22 14 19 18 18 12 2 5 4 8 24 7 14 12 10 17 20 10 16 5 8 42 Robot Miss Streak 23 | 2 9 1 3 4 4 2 5 2 2 1 1 23 4 6 6 1 1 2 . 1 3 5 2 4 2 Penetration Max 2 | . . . . . . . . . . . . . . . . 1 . . . . 1 . . . 2 Secondary Targets 9 | . 4 . . 2 . . . . . . . . . . . . . . . . . . . . 3 Max Gunslinging Chain 1 | . 1 . . 1 . . . . . . . . . . . . . . . . . . . . 1 Shots Hit Robots 1034 | 18 65 3 54 64 77 31 23 31 37 7 10 14 9 190 32 23 13 45 14 5 32 50 11 21 155 Core Hits 621 | 8 31 2 27 49 47 19 21 37 16 8 7 19 7 110 18 38 8 21 5 5 15 24 4 11 64 Critical Kills 4 | . . . . 1 . . . . 1 . . . . . . . . . . . 2 . . . . Critical Parts Destroyed 2 | . . . 1 . . 1 . . . . . . . . . . . . . . . . . . . Critical Strikes 19 | . . . 3 2 . 1 1 . 1 . . . . 4 . . . . . . 2 5 . . . Burn 2 | . . . . . . . 1 . . . . . . 1 . . . . . . . . . . . Meltdown 1 | . . . . . . . . . 1 . . . . . . . . . . . . . . . . Destroy 5 | . . . 1 1 . 1 . . . . . . . . . . . . . . 2 . . . . Blast 3 | . . . 2 1 . . . . . . . . . . . . . . . . . . . . . Sever 3 | . . . . . . . . . . . . . . 3 . . . . . . . . . . . Intensify 5 | . . . . . . . . . . . . . . . . . . . . . . 5 . . . Melee Attacks 38 | . . . . 1 . 7 . 2 10 6 12 . . . . . . . . . . . . . . Impact 5 | . . . . 1 . 4 . . . . . . . . . . . . . . . . . . . Slashing 21 | . . . . . . 3 . . . 6 12 . . . . . . . . . . . . . . Piercing 12 | . . . . . . . . 2 10 . . . . . . . . . . . . . . . . Sneak Attacks 9 | . . . . . . 1 . . 1 5 2 . . . . . . . . . . . . . . Combat Hostiles 1 | . . . . . . . . . . . 1 . . . . . . . . . . . . . . Follow-up Attacks . | . . . . . . . . . . . . . . . . . . . . . . . . . . Damage Inflicted 90910 | 180 916 48 1630 2374 1727 1088 997 2588 1129 1003 494 281 616 12269 2455 2580 1168 7239 2157 791 5561 9574 1586 3721 26738 Guns 3814 | 180 789 23 125 637 1238 . . 25 243 . . . . 174 . . . . . . . . . . 380 Cannons 78058 | . . 25 1078 408 192 1026 749 937 833 70 139 281 450 10031 2455 1344 1161 7239 2157 791 5561 9478 1586 3721 26346 Explosions 7718 | . 127 . 427 1329 288 . 248 1626 . 362 . . 166 1813 . 1236 . . . . . 96 . . . Melee 1041 | . . . . . . 62 . . 53 571 355 . . . . . . . . . . . . . . Ramming 32 | . . . . . 9 . . . . . . . . 4 . . 7 . . . . . . . 12 Kinetic 46122 | 59 706 23 430 882 796 91 . 576 476 70 139 237 450 3598 788 1344 834 . 2157 791 3972 . 789 1586 25328 Thermal 22661 | 109 83 25 773 163 288 935 749 244 600 . . 44 . 6607 1667 . . . . . . 7360 797 2135 82 Explosive 5839 | . 127 . 427 1329 . . 248 1533 . 362 . . . 1813 . . . . . . . . . . . Electromagnetic 3695 | 12 . . . . 634 . . 235 . . . . 166 . . 1236 . . . . . 96 . . 1316 Impact . | . . . . . . . . . . . . . . . . . . . . . . . . . . Slashing 1235 | . . . . . . 62 . . . 571 355 . . 247 . . . . . . . . . . . Piercing 53 | . . . . . . . . . 53 . . . . . . . . . . . . . . . . Phasic 11273 | . . . . . . . . . . . . . . . . . 327 7239 . . 1589 2118 . . . Highest Corruption 24 | . 1 1 . . . 1 1 1 1 2 . . . . . 1 4 4 4 4 1 . 1 1 24 Average Corruption 2 | . 1 1 . . . 1 1 1 1 1 . . . . . 1 1 4 4 2 1 . 1 1 11 Corruption Purged 6 | . . . . . . . 1 . . 1 . . . . . . . . . 4 . . . . . Corruption Blocked . | . . . . . . . . . . . . . . . . . . . . . . . . . . Effects 148 | . 8 4 . . . 1 7 4 3 2 . . . . . 9 . 33 7 5 3 . 1 15 46 Message Errors 29 | . 2 . . . . . 2 1 2 1 . . . . . 1 . 6 1 2 1 . . 1 9 Matter Fused 41 | . 3 3 . . . 1 2 1 . . . . . . . 1 . 13 1 . . . 1 5 10 Heat Flow Errors 16 | . . . . . . . 1 1 . . . . . . . . . 3 1 . 1 . . 4 5 Energy Discharges 21 | . . . . . . . 1 . 1 . . . . . . 2 . 4 4 . . . . 3 6 Parts Rejected 3 | . . . . . . . . . . . . . . . . . . 1 . . . . . . 2 Parts Fused 1 | . . . . . . . . . . . . . . . . 1 . . . . . . . . . Data Loss (minor) 19 | . . 1 . . . . . 1 . 1 . . . . . 3 . 4 . 1 . . . 2 6 Data Loss (major) 4 | . . . . . . . . . . . . . . . . 1 . 1 . . . . . . 2 Alerts 6 | . 1 . . . . . 1 . . . . . . . . . . 1 . 1 1 . . . 1 Misdirections 1 | . . . . . . . . . . . . . . . . . . . . . . . . . 1 Weapon Failures 7 | . 2 . . . . . . . . . . . . . . . . . . 1 . . . . 4 Overload Shots . | . . . . . . . . . . . . . . . . . . . . . . . . . . Overflow Damage 13807 | . . . 30 28 66 41 15 71 . 355 . . 115 680 90 42 217 1390 66 . 1123 2914 512 959 5093 Projectiles 13231 | . . . 14 . 10 19 15 48 . . . . 115 606 90 40 217 1390 66 . 1123 2914 512 959 5093 Explosions 200 | . . . 16 28 56 . . 23 . 1 . . . 74 . 2 . . . . . . . . . Melee 376 | . . . . . . 22 . . . 354 . . . . . . . . . . . . . . . Knockbacks 118 | . . . 1 1 . . . 2 3 . . 6 2 14 7 6 6 . . . 7 . 4 3 56 Impact . | . . . . . . . . . . . . . . . . . . . . . . . . . . Kinetic 105 | . . . 1 1 . . . 2 3 . . 6 2 14 7 6 5 . . . 7 . 4 3 44 Secondary 13 | . . . . . . . . . . . . . . . . . 1 . . . . . . . 12 Self-Inflicted Damage 519 | . 24 . 39 7 118 . . 194 . 31 . . . . . 42 . . . . . 64 . . . Shots 22 | . 1 . 3 1 4 . . 6 . 1 . . . . . 4 . . . . . 2 . . . Rammed 4 | . . . . . 1 . . . . . . . . . . . 1 . . . . . . . 2 Targets Rammed 5 | . . . . . 1 . . . . . . . . 1 . . 1 . . . . . . . 2 Kicked 1 | . . . . . . . . . . . . . . 1 . . . . . . . . . . . Crushed . | . . . . . . . . . . . . . . . . . . . . . . . . . . Highest Temperature 552 | 54 426 36 328 228 351 125 183 246 318 83 160 116 172 315 255 106 208 396 409 261 371 338 280 341 552 Average Temperature 113 | 21 137 22 97 76 85 46 62 47 86 43 71 45 58 88 69 39 72 136 153 152 146 133 127 127 158 Received Heat Transfer 5094 | . 285 . 246 414 288 84 69 275 . . 55 . . 405 609 66 . 233 . 27 135 228 20 105 1550 Effects 45 | . 5 . 2 . 1 . . . . . . . . 1 . . . 5 . . 4 2 1 1 23 Shutdowns 6 | . 1 . . . . . . . . . . . . . . . . 1 . . . 1 . . 3 Energy Bleed 6 | . 1 . . . 1 . . . . . . . . . . . . 1 . . . 1 1 . 1 Interference 23 | . 2 . 2 . . . . . . . . . . 1 . . . 2 . . 4 . . 1 11 Matter Decay 1 | . . . . . . . . . . . . . . . . . . . . . . . . . 1 Short Circuit 3 | . 1 . . . . . . . . . . . . . . . . 1 . . . . . . 1 Damage (major) 6 | . . . . . . . . . . . . . . . . . . . . . . . . . 6 Siege Activations 6 | . . . . . . . . . . . . . . . . . . . . . . . . . 6 Total Turns 188 | . . . . . . . . . . . . . . . . . . . . . . . . . 188 Longest Duration 90 | . . . . . . . . . . . . . . . . . . . . . . . . . 90 Martial Activations . | . . . . . . . . . . . . . . . . . . . . . . . . . . Shielding Activations . | . . . . . . . . . . . . . . . . . . . . . . . . . . Robots Disrupted . | . . . . . . . . . . . . . . . . . . . . . . . . . . Combat Hostiles . | . . . . . . . . . . . . . . . . . . . . . . . . . . Robots Corrupted 7 | . . . . . . . . . . . . . . . . 2 . . . . . . . . 5 Combat Hostiles 7 | . . . . . . . . . . . . . . . . 2 . . . . . . . . 5 Parts Fried 32 | . . . . . 4 . . 3 . . . . . . . 9 . . . . . 3 . 1 12 Impact Corruptions 3 | . . . . . . . . . . . . . . . . . . . . . . . . . 3 Robots Melted 4 | . . . . . . 1 1 . 1 . . . . 1 . . . . . . . . . . . Combat Hostiles 3 | . . . . . . 1 1 . 1 . . . . . . . . . . . . . . . . Parts Melted 34 | . . . 1 . 1 6 2 2 . . . . . 12 4 . . . . . . 1 1 . 4 Heat Transferred 16460 | 250 222 37 1184 296 550 2200 2000 248 259 . . 37 . 5699 1258 . . . . . . 1443 185 481 111 Parts Sabotaged 1 | . . . . . . . . . . . . . . . . . . . . . . . . . 1 Parts Stolen 1 | . . . . . . . . 1 . . . . . . . . . . . . . . . . . Parts Stripped . | . . . . . . . . . . . . . . . . . . . . . . . . . . Power Chain Reactions 8 | . . . . . 5 . . 2 . . . . . . . 1 . . . . . . . . . Alert | -11 -10 -10 -9 -9 -9 -7 -7 -7 -7 -6 -6 -6 -6 -6 -6 -5 -5 -5 -5 -5 -5 -4 -4 -4 -4 ------- Run | Yrd Mat Min Mat Sto Rec Fac Low Low Dat Pro Fac Low Low Zio Dee Pro Fac Ext Cet Arc Hub Fac Upp Upp War Maximum Alert Level 3 | . 1 . 1 2 1 1 . . . . 1 . . . . . 1 3 3 2 2 2 . . . Low Security (%) 58 | 100 95 100 37 20 97 90 . . . . . . . . . . 55 60 . 67 10 31 . . . Level 1 26 | . 4 . 62 58 2 9 . . . . 100 . . . . . 44 18 . 26 39 28 . . . Level 2 12 | . . . . 20 . . . . . . . . . . . . . 9 67 6 49 39 . . . Level 3 2 | . . . . . . . . . . . . . . . . . . 12 32 . . . . . . Level 4 . | . . . . . . . . . . . . . . . . . . . . . . . . . . Level 5 . | . . . . . . . . . . . . . . . . . . . . . . . . . . High Security . | . . . . . . . . . . . . . . . . . . . . . . . . . . Max Security . | . . . . . . . . . . . . . . . . . . . . . . . . . . Peak Influence 1067 | 10 212 42 310 575 217 236 . . . . 322 . . . . . 255 1067 775 446 538 577 . . . Initial 581 | . . 42 1 79 217 224 . . . . 306 . . . . . 252 44 581 286 . 161 . . . Average 206 | 1 105 3 184 324 84 126 . . . . 269 . . . . . 178 305 672 135 368 328 . . . Influence Increases 11082 | 25 499 20 670 810 454 499 261 224 20 60 472 160 120 . . 465 400 1605 344 180 921 996 50 572 1255 Destroy 0b10 Robot/C 6440 | . 300 20 420 520 140 160 240 180 20 40 100 140 80 . . 380 140 800 160 80 420 580 40 400 1080 Destroy 0b10 Robot/NC 435 | 25 20 . 15 60 105 20 5 . . 20 5 . 5 . . 15 5 60 10 5 20 25 . 5 10 Destroy Leader 938 | . 62 . 122 114 . 40 10 40 . . 30 20 20 . . 50 40 94 . . 100 156 10 30 . Allied During Kill 829 | . . . . . . . 6 4 . . . . . . . 5 . 450 121 85 36 . . 122 . Successful Hack 240 | . 16 . 15 10 28 29 . . . . . . . . . . 12 14 . . 15 101 . . . Select Force Hacks 380 | . 60 . . . 120 . . . . . . . . . . . . . . . 200 . . . . Disable Machine 330 | . . . 45 15 45 15 . . . . . . . . . . . 105 15 . 45 45 . . . Destroy Structure 435 | . 26 . 38 91 16 5 . . . . 7 . . . . . 8 52 38 10 70 74 . . . Advance Influence 650 | . . . . . . 200 . . . . 300 . . . . . 150 . . . . . . . . Partial Spotted 30 | . 15 . . . . 15 . . . . . . . . . . . . . . . . . . . Lose Combat Pursuer 375 | . . . 15 . . 15 . . . . 30 . 15 . . 15 45 30 . . 15 15 . 15 165 Influence Decreases 10383 | 25 389 126 485 440 954 469 350 192 52 50 202 440 112 8 . 302 471 658 668 895 591 797 579 426 702 Entered New Map 2247 | . . 68 3 110 342 35 34 . 32 . 4 104 . 8 . . 61 48 458 429 . 169 196 . 146 Time Decay 7130 | 25 349 58 451 230 527 434 296 182 20 50 198 336 112 . . 272 410 510 190 466 481 458 383 396 296 Lost Part 521 | . 40 . 31 100 40 . . 10 . . . . . . . 10 . . . . 10 10 . 10 260 Lost Ally 290 | . . . . . . . 20 . . . . . . . . 20 . 100 20 . 100 10 . 20 . Purge Threat 195 | . . . . . 45 . . . . . . . . . . . . . . . . 150 . . . Squads Dispatched 43 | . 3 1 1 6 . 3 . . . . 2 . . . . 1 6 3 . . 10 7 . . . Investigation 14 | . 2 1 . . . 2 . . . . 1 . . . . . . . . . 5 3 . . . Extermination 5 | . . . . . . 1 . . . . 1 . . . . . 1 . . . 1 1 . . . Reinforcement 6 | . 1 . 1 2 . . . . . . . . . . . . 1 1 . . . . . . . Assault 6 | . . . . 1 . . . . . . . . . . . 1 2 2 . . . . . . . Garrison 3 | . . . . 3 . . . . . . . . . . . . . . . . . . . . . Intercept 9 | . . . . . . . . . . . . . . . . . 2 . . . 4 3 . . . Searches Triggered . | . . . . . . . . . . . . . . . . . . . . . . . . . . Construction Impeded 1 | . . . . 1 . . . . . . . . . . . . . . . . . . . . . Haulers Reinforced . | . . . . . . . . . . . . . . . . . . . . . . . . . . Active Scanning Responses . | . . . . . . . . . . . . . . . . . . . . . . . . . . Cargo Convoy Interrupts 1 | . . . . . . . . . . . . . . . . . 1 . . . . . . . . Stealth | -11 -10 -10 -9 -9 -9 -7 -7 -7 -7 -6 -6 -6 -6 -6 -6 -5 -5 -5 -5 -5 -5 -4 -4 -4 -4 --------- Run | Yrd Mat Min Mat Sto Rec Fac Low Low Dat Pro Fac Low Low Zio Dee Pro Fac Ext Cet Arc Hub Fac Upp Upp War Distress Signals 17 | . 2 . 5 4 . . . . . . 1 . . . . . . 1 2 . . . . . 2 Communications Jammed 2 | . . . . . . . . . . . . . . . . . . . . . . . . . 2 Distress Signals 2 | . . . . . . . . . . . . . . . . . . . . . . . . . 2 Times Spotted 593 | . 28 2 27 33 4 13 12 21 4 4 8 7 5 108 16 21 11 40 9 4 27 34 3 21 131 Peak Tracking Total 23 | . 6 2 5 6 2 3 6 6 2 2 2 3 3 8 5 5 5 11 5 2 10 5 2 7 23 Tactical Retreats 28 | . . . 1 . . 1 . . . . 2 . 1 6 . 1 3 2 . . 1 1 . 1 8 Traps | -11 -10 -10 -9 -9 -9 -7 -7 -7 -7 -6 -6 -6 -6 -6 -6 -5 -5 -5 -5 -5 -5 -4 -4 -4 -4 ------- Run | Yrd Mat Min Mat Sto Rec Fac Low Low Dat Pro Fac Low Low Zio Dee Pro Fac Ext Cet Arc Hub Fac Upp Upp War Traps Triggered 9 | . 1 . . . . . . . . . 3 . . . . . . 1 . . . 1 . . 3 Indirectly . | . . . . . . . . . . . . . . . . . . . . . . . . . . Trap Hack Attempts . | . . . . . . . . . . . . . . . . . . . . . . . . . . Triggered . | . . . . . . . . . . . . . . . . . . . . . . . . . . Disarmed . | . . . . . . . . . . . . . . . . . . . . . . . . . . Reprogrammed . | . . . . . . . . . . . . . . . . . . . . . . . . . . Reused 4 | . . . . . . . . . 1 . . . . . 3 . . . . . . . . . . Traps Extracted . | . . . . . . . . . . . . . . . . . . . . . . . . . . Installed 7 | . . . . . . . . . 1 . . . . . 6 . . . . . . . . . . Triggered . | . . . . . . . . . . . . . . . . . . . . . . . . . . Most Traps Carried 6 | . . . . . . . . 2 2 1 . . 6 6 6 . . . . . . . . . . Machines | -11 -10 -10 -9 -9 -9 -7 -7 -7 -7 -6 -6 -6 -6 -6 -6 -5 -5 -5 -5 -5 -5 -4 -4 -4 -4 ---------- Run | Yrd Mat Min Mat Sto Rec Fac Low Low Dat Pro Fac Low Low Zio Dee Pro Fac Ext Cet Arc Hub Fac Upp Upp War Machines Disabled 38 | . . . 3 1 3 1 . 1 . 1 . . . 6 . 2 . 7 1 . 3 3 1 2 3 Max in Single Turn 2 | . . . 1 1 1 1 . 1 . 1 . . . 2 . 1 . 1 1 . 1 2 1 1 1 Garrison Access 2 | . . . . . . 1 . . . . . . . . . . 1 . . . . . . . . Network Hub 4 | . . . . . . . . . . . . . . . . . . . . . 4 . . . . Machines Repaired . | . . . . . . . . . . . . . . . . . . . . . . . . . . Machines Dismantled . | . . . . . . . . . . . . . . . . . . . . . . . . . . Machines Sabotaged 4 | . . . . . . . . . . . . . . . . . . . . . 4 . . . . Overloaded Fab Kills . | . . . . . . . . . . . . . . . . . . . . . . . . . . Hacking | -11 -10 -10 -9 -9 -9 -7 -7 -7 -7 -6 -6 -6 -6 -6 -6 -5 -5 -5 -5 -5 -5 -4 -4 -4 -4 --------- Run | Yrd Mat Min Mat Sto Rec Fac Low Low Dat Pro Fac Low Low Zio Dee Pro Fac Ext Cet Arc Hub Fac Upp Upp War Machines Accessed 84 | . 8 1 5 5 11 8 1 . 4 . 1 2 1 . . 1 6 9 . . 5 12 . . 4 Terminals 50 | . 6 . 5 5 6 5 . . . . 1 1 . . . . 3 8 . . 5 5 . . . Fabricators 7 | . . . . . . 2 . . . . . . . . . . 1 . . . . 4 . . . Repair Stations 1 | . . . . . . . . . . . . . . . . . . . . . . 1 . . . Recycling Units 9 | . 2 . . . 4 . . . . . . . . . . . 2 1 . . . . . . . Scanalyzers 2 | . . . . . . . . . . . . . . . . . . . . . . 2 . . . Garrison Access 1 | . . . . . . 1 . . . . . . . . . . . . . . . . . . . Total Hacks 224 | . 21 1 20 10 30 15 1 . 26 . 1 2 1 . . 1 10 14 . . 14 48 . . 9 Successful 139 | . 11 1 11 6 23 7 1 . 26 . . 2 1 . . 1 3 4 . . 10 23 . . 9 Failed 83 | . 9 . 9 4 6 8 . . . . 1 . . . . . 7 10 . . 4 25 . . . Catastrophic 20 | . 1 . 1 . . 3 . . . . . . . . . . 3 4 . . . 8 . . . Database Lockouts 2 | . 1 . . . 1 . . . . . . . . . . . . . . . . . . . . Manual 109 | . 20 . 19 7 22 4 . . . 1 . . . . . . 5 7 1 . 14 9 . . . Terminals 133 | . 19 . 20 10 20 9 . . . . 1 1 . . . . 5 12 . . 14 22 . . . Fabricators 20 | . . . . . . 5 . . . . . . . . . . 3 . . . . 12 . . . Repair Stations 2 | . . . . . . . . . . . . . . . . . . . . . . 2 . . . Recycling Units 14 | . 2 . . . 8 . . . . . . . . . . . 2 2 . . . . . . . Scanalyzers 12 | . . . . . . . . . . . . . . . . . . . . . . 12 . . . Garrison Access 1 | . . . . . . 1 . . . . . . . . . . . . . . . . . . . Terminal Hacks 61 | . 2 1 2 1 7 2 1 . 26 . . 2 1 . . 1 . 1 . . 2 3 . . 9 Record 22 | . . . . . . . . . 11 . . 1 . . . 1 . . . . . . . . 9 Part Schematic 11 | . 1 . 1 . . . . . 8 . . . . . . . . . . . 1 . . . . Robot Schematic 4 | . . . . . . . . . 4 . . . . . . . . . . . . . . . . Robot Analysis 2 | . 1 . . . 1 . . . . . . . . . . . . . . . . . . . . Prototype ID Bank 6 | . . . . . 3 . . . 3 . . . . . . . . . . . . . . . . Open Door 6 | . . 1 . 1 . . 1 . . . . 1 1 . . . . 1 . . . . . . . Level Access Points 1 | . . . . . . . . . . . . . . . . . . . . . 1 . . . . Branch Access Points 2 | . . . . . . 1 . . . . . . . . . . . . . . . 1 . . . Terminal Index 1 | . . . . . . 1 . . . . . . . . . . . . . . . . . . . Alert Level 1 | . . . . . . . . . . . . . . . . . . . . . . 1 . . . Unreport Threat 2 | . . . . . 1 . . . . . . . . . . . . . . . . 1 . . . Zone Layout 1 | . . . 1 . . . . . . . . . . . . . . . . . . . . . . Release Object 2 | . . . . . 2 . . . . . . . . . . . . . . . . . . . . Fabricator Hacks 10 | . . . . . . 3 . . . . . . . . . . 1 . . . . 6 . . . Load Schematic 6 | . . . . . . 2 . . . . . . . . . . 1 . . . . 3 . . . Build 4 | . . . . . . 1 . . . . . . . . . . . . . . . 3 . . . Repair Station Hacks 2 | . . . . . . . . . . . . . . . . . . . . . . 2 . . . Scan Component 1 | . . . . . . . . . . . . . . . . . . . . . . 1 . . . Repair 1 | . . . . . . . . . . . . . . . . . . . . . . 1 . . . Recycling Unit Hacks 3 | . . . . . 1 . . . . . . . . . . . 1 1 . . . . . . . Retrieve Components 3 | . . . . . 1 . . . . . . . . . . . 1 1 . . . . . . . Scanalyzer 6 | . . . . . . . . . . . . . . . . . . . . . . 6 . . . Insert Component 5 | . . . . . . . . . . . . . . . . . . . . . . 5 . . . Analyze 1 | . . . . . . . . . . . . . . . . . . . . . . 1 . . . Garrison Access Hacks 1 | . . . . . . 1 . . . . . . . . . . . . . . . . . . . Seal Access 1 | . . . . . . 1 . . . . . . . . . . . . . . . . . . . Unauthorized Hacks 56 | . 9 . 9 5 15 1 . . . . . . . . . . 1 2 . . 8 6 . . . Terminals 47 | . 7 . 9 5 10 1 . . . . . . . . . . 1 2 . . 8 4 . . . Track 3 | . . . . . . . . . . . . . . . . . 1 . . . 1 1 . . . Assimilate 1 | . . . . . . . . . . . . . . . . . . . . . . 1 . . . Botnet 18 | . 2 . 4 2 4 1 . . . . . . . . . . . 2 . . 1 2 . . . Operators 1 | . . . . . . . . . . . . . . . . . . . . . 1 . . . . Skim 19 | . 5 . 5 3 6 . . . . . . . . . . . . . . . . . . . . Sabotage 5 | . . . . . . . . . . . . . . . . . . . . . 5 . . . . Fabricators 2 | . . . . . . . . . . . . . . . . . . . . . . 2 . . . Prioritize 2 | . . . . . . . . . . . . . . . . . . . . . . 2 . . . Repair Stations . | . . . . . . . . . . . . . . . . . . . . . . . . . . Recycling Units 7 | . 2 . . . 5 . . . . . . . . . . . . . . . . . . . . Mask 1 | . . . . . 1 . . . . . . . . . . . . . . . . . . . . Tunnel 6 | . 2 . . . 4 . . . . . . . . . . . . . . . . . . . . Scanalyzers . | . . . . . . . . . . . . . . . . . . . . . . . . . . Garrison Access . | . . . . . . . . . . . . . . . . . . . . . . . . . . Data Cores Recovered . | . . . . . . . . . . . . . . . . . . . . . . . . . . Used . | . . . . . . . . . . . . . . . . . . . . . . . . . . Hacking Detections 50 | . 4 . 5 3 5 7 . . . . 1 . . . . . 6 8 . . 1 10 . . . Full Trace Events 5 | . . . . . . 2 . . . . . . . . . . . . . . . 3 . . . Feedback Events . | . . . . . . . . . . . . . . . . . . . . . . . . . . Feedback Blocked . | . . . . . . . . . . . . . . . . . . . . . . . . . . Robot Schematics Acquired 7 | . . . . . . . . . 4 . . . . 3 . . . . . . . . . . . Robots Built . | . . . . . . . . . . . . . . . . . . . . . . . . . . Authchips . | . . . . . . . . . . . . . . . . . . . . . . . . . . Time . | . . . . . . . . . . . . . . . . . . . . . . . . . . Total Robot Build Rating . | . . . . . . . . . . . . . . . . . . . . . . . . . . Part Schematics Acquired 26 | . 1 . 1 . . . . . 8 . . . . 14 . . . . . . 1 1 . . . Parts Built 5 | . . . . . . 1 . . . . . . . . . . . . . . . 4 . . . Authchips . | . . . . . . . . . . . . . . . . . . . . . . . . . . Time 179 | . . . . . . 51 . . . . . . . . . . . . . . . 128 . . . Total Part Build Rating 19 | . . . . . . 1 . . . . . . . . . . . . . . . 18 . . . Parts Repaired 1 | . . . . . . . . . . . . . . . . . . . . . . 1 . . . Time 108 | . . . . . . . . . . . . . . . . . . . . . . 108 . . . Parts Recycled . | . . . . . . . . . . . . . . . . . . . . . . . . . . Recycled Matter . | . . . . . . . . . . . . . . . . . . . . . . . . . . Retrieved Matter . | . . . . . . . . . . . . . . . . . . . . . . . . . . Retrieved Components 12 | . . . . . 1 . . . . . . . . . . . 1 10 . . . . . . . Parts Scanalyzed 2 | . . . . . . . . . . . . . . . . . . . . . . 2 . . . Part Schematics Acquired 1 | . . . . . . . . . . . . . . . . . . . . . . 1 . . . Parts Damaged 1 | . . . . . . . . . . . . . . . . . . . . . . 1 . . . Bothacking | -11 -10 -10 -9 -9 -9 -7 -7 -7 -7 -6 -6 -6 -6 -6 -6 -5 -5 -5 -5 -5 -5 -4 -4 -4 -4 ------------ Run | Yrd Mat Min Mat Sto Rec Fac Low Low Dat Pro Fac Low Low Zio Dee Pro Fac Ext Cet Arc Hub Fac Upp Upp War Used RIF Installer . | . . . . . . . . . . . . . . . . . . . . . . . . . . Robots Hacked . | . . . . . . . . . . . . . . . . . . . . . . . . . . Non-combat . | . . . . . . . . . . . . . . . . . . . . . . . . . . Combat . | . . . . . . . . . . . . . . . . . . . . . . . . . . Robot Hacks Applied . | . . . . . . . . . . . . . . . . . . . . . . . . . . Relay Couplers Released 1 | . . . . . . . . . . . . . . . . . 1 . . . . . . . . Machine Destruction 1 | . . . . . . . . . . . . . . . . . 1 . . . . . . . . Fabnet Peak Effective % . | . . . . . . . . . . . . . . . . . . . . . . . . . . Robots Rewired 13 | . . . . . . . 2 . . . . . . . . 1 . 6 . . . . 4 . . Allies Hacked . | . . . . . . . . . . . . . . . . . . . . . . . . . . Hacks Repelled . | . . . . . . . . . . . . . . . . . . . . . . . . . . Allies | -11 -10 -10 -9 -9 -9 -7 -7 -7 -7 -6 -6 -6 -6 -6 -6 -5 -5 -5 -5 -5 -5 -4 -4 -4 -4 -------- Run | Yrd Mat Min Mat Sto Rec Fac Low Low Dat Pro Fac Low Low Zio Dee Pro Fac Ext Cet Arc Hub Fac Upp Upp War Total Allies 28 | . . 1 . . . . 2 . . . . . . . . 1 . 14 5 . . 1 4 . . Largest Group 14 | . . 1 . . . . 2 1 . . . . . . . 1 . 14 8 8 6 1 4 4 2 Highest-Rated Group 693 | . . 31 . . . . 32 16 . . . . . . . 30 . 574 693 668 426 26 192 192 96 Highest-Rated Ally 159 | . . 31 . . . . 16 16 . . . . . . . 30 . 159 159 153 96 26 48 48 48 Total Orders 14 | . . . . . . . . . . . . . . . . . . . . 2 . 4 . 6 2 STAY 6 | . . . . . . . . . . . . . . . . . . . . 1 . 2 . 3 . FOLLOW 6 | . . . . . . . . . . . . . . . . . . . . 1 . 2 . 3 . EXPLORE 2 | . . . . . . . . . . . . . . . . . . . . . . . . . 2 Ally Attacks 237 | . . . . . . . 7 5 . . . . . . . 1 . 127 46 13 17 . . 19 2 Total Damage 5820 | . . . . . . . 64 64 . . . . . . . 42 . 2767 918 470 828 . . 630 37 Kills 44 | . . . . . . . 1 . . . . . . . . 1 . 25 6 1 4 . . 6 . Allies Corrupted 3 | . . . . . . . . . . . . . . . . . . . . . 3 . . . . Allies Melted . | . . . . . . . . . . . . . . . . . . . . . . . . . . Intel | -11 -10 -10 -9 -9 -9 -7 -7 -7 -7 -6 -6 -6 -6 -6 -6 -5 -5 -5 -5 -5 -5 -4 -4 -4 -4 ------- Run | Yrd Mat Min Mat Sto Rec Fac Low Low Dat Pro Fac Low Low Zio Dee Pro Fac Ext Cet Arc Hub Fac Upp Upp War Active Infowar (turns) 16757 | . 54 64 232 . . 104 1303 934 . 873 15 1356 3943 3 . 1775 662 . . 39 295 529 2105 1698 773 Optics 296 | . . 64 232 . . . . . . . . . . . . . . . . . . . . . . Sensors 493 | . . . . . . . . 31 . 71 . . . . . . . . . . . . . . 391 IFF 12671 | . . . . . . . . . . . . 1356 3943 3 . 1733 662 . . 39 295 519 2105 1698 318 Structural 3023 | . . . . . . . 1303 903 . 802 15 . . . . . . . . . . . . . . Seismic 54 | . 54 . . . . . . . . . . . . . . . . . . . . . . . . Machine Analysis 104 | . . . . . . 104 . . . . . . . . . . . . . . . . . . . Jamming 405 | . . . . . . . . . . . . . . . . 310 . . . . . 13 . . 82 Robot Analysis Total 153 | . 1 . . . 1 . . . 151 . . . . . . . . . . . . . . . . Derelict Logs Recovered 15 | . . 1 . . . . 1 1 . 1 . 2 2 . . 3 . . . . . . 1 3 . Drone Launches 2 | . . . . . . . . . . . . . . . . . . . . . . . . . 2 Drone Recoveries . | . . . . . . . . . . . . . . . . . . . . . . . . . . Exploration | -11 -10 -10 -9 -9 -9 -7 -7 -7 -7 -6 -6 -6 -6 -6 -6 -5 -5 -5 -5 -5 -5 -4 -4 -4 -4 ------------- Run | Yrd Mat Min Mat Sto Rec Fac Low Low Dat Pro Fac Low Low Zio Dee Pro Fac Ext Cet Arc Hub Fac Upp Upp War Turns Passed 38699 | 114 1044 682 1327 496 1863 1066 1602 1910 477 965 417 1493 4057 3510 1899 2831 980 1390 383 1785 1359 1141 2318 2116 1474 Spaces Moved 20297 | 69 570 642 905 288 1210 651 1010 1290 215 912 267 1200 1476 1722 1094 1417 436 634 211 141 822 695 979 960 481 Core 18 | 18 . . . . . . . . . . . . . . . . . . . . . . . . . Treads 4789 | . . . . . . 10 . . 62 912 267 1200 473 922 267 . 264 141 . . . . . . 271 Legs 6645 | . . . . . . 50 234 846 153 . . . . 468 827 1417 172 344 . . . . 964 960 210 Wheels 6421 | 51 570 642 905 288 1210 532 776 444 . . . . 1003 . . . . . . . . . . . . Hover 2424 | . . . . . . 59 . . . . . . . 332 . . . 149 211 141 822 695 15 . . Flight . | . . . . . . . . . . . . . . . . . . . . . . . . . . Fastest Speed 50 | 50 90 100 93 86 95 92 103 88 88 66 66 95 77 101 114 114 182 135 135 135 67 77 207 108 108 Average Speed 129 | 85 99 101 96 94 110 138 138 101 90 94 82 95 159 127 114 128 182 162 135 135 144 102 207 206 141 Slowest Speed 212 | 100 125 115 130 105 128 189 186 103 95 95 95 95 212 168 114 182 182 182 135 135 155 207 207 207 168 Overloaded Moves . | . . . . . . . . . . . . . . . . . . . . . . . . . . Propulsion Burnouts . | . . . . . . . . . . . . . . . . . . . . . . . . . . Robots Hopped . | . . . . . . . . . . . . . . . . . . . . . . . . . . Potential Cave-ins 2 | . . . . . . . . . . . . . . . . . . . . . . . . . 2 Cave-ins Triggered 1 | . . . . . . . . . . . . . . . . . . . . . . . . . 1 Exploration Rate (%) 69 | 4 97 99 68 59 94 13 98 98 80 96 9 98 99 86 85 99 14 77 77 78 26 20 93 93 56 Regions Visited 25 Branch Regions 19 Pre-discovered Areas 40 | . 2 1 3 . 5 . . . 23 1 . 1 . . . . . . . . . . 1 2 1 Known Exits Taken 10 | . 1 . 1 1 . 1 . . . . 1 . . . . 1 1 . . . 1 1 . 1 . Unknown Exits Taken 15 | 1 . 1 . . 1 . 1 1 1 1 . 1 1 1 1 . . 1 1 1 . . 1 . . Scrap Searched 31 | . . 2 . . . . 2 2 . 3 . 3 4 3 . 4 . . . . . . 4 4 . Spaces Dug 259 | . 15 . 8 16 . 5 14 83 . 31 7 10 4 . 5 5 3 2 . . 9 25 2 . 15 Terrain Destroyed 767 | . 23 . 39 105 16 5 19 203 1 48 7 11 13 86 27 17 4 13 1 3 33 38 7 8 40 Melee 13 | . . . . 1 . 4 . 1 . . 7 . . . . . . . . . . . . . . Projectile 281 | . . . 18 2 2 1 2 18 1 . . 11 13 22 27 17 4 13 1 3 33 38 7 8 40 AOE 473 | . 23 . 21 102 14 . 17 184 . 48 . . . 64 . . . . . . . . . . . Terrain Rammed . | . . . . . . . . . . . . . . . . . . . . . . . . . . Walls Destroyed . | . . . . . . . . . . . . . . . . . . . . . . . . . . Machines Disabled . | . . . . . . . . . . . . . . . . . . . . . . . . . . Actions | -11 -10 -10 -9 -9 -9 -7 -7 -7 -7 -6 -6 -6 -6 -6 -6 -5 -5 -5 -5 -5 -5 -4 -4 -4 -4 --------- Run | Yrd Mat Min Mat Sto Rec Fac Low Low Dat Pro Fac Low Low Zio Dee Pro Fac Ext Cet Arc Hub Fac Upp Upp War Total 31385 | 100 952 672 1260 402 1659 783 1186 1822 441 986 443 1529 3166 2892 1720 2390 611 946 299 1730 944 1035 1254 1067 1096 Wait 8428 | . 288 18 260 16 286 39 88 386 141 26 118 292 1611 796 483 888 117 162 54 1563 28 155 213 55 345 Move 20271 | 68 569 641 904 287 1209 650 1009 1289 214 911 266 1199 1475 1721 1093 1416 435 633 210 140 821 694 978 959 480 Hop . | . . . . . . . . . . . . . . . . . . . . . . . . . . Pick Up 399 | 13 15 5 14 7 39 23 15 21 15 3 14 5 23 55 30 9 15 15 8 6 9 24 2 4 10 Fast Attach 80 | 1 2 2 4 9 . 1 4 1 . 5 4 1 4 11 8 2 2 2 1 1 . 2 5 1 7 Attach 94 | 5 5 . 7 9 5 3 . 3 7 3 4 1 5 6 6 1 2 . . 1 1 5 . 1 14 Detach 25 | . . . . 1 5 . . 1 1 3 3 1 . 2 4 1 1 1 . . . 1 . . . Swap 303 | 1 13 . 11 13 3 4 10 31 6 8 1 7 8 11 11 13 8 5 2 5 28 44 4 14 42 Drop 399 | . 9 4 11 7 37 21 15 21 11 9 15 8 25 64 36 14 13 16 9 7 7 17 7 4 12 Fire 1243 | 12 51 2 49 52 74 35 32 67 35 12 6 15 15 225 43 40 17 65 15 7 50 93 19 29 183 Melee 38 | . . . . 1 . 7 . 2 10 6 12 . . . . . . . . . . . . . . Ram 1 | . . . . . 1 . . . . . . . . . . . . . . . . . . . . Kick 1 | . . . . . . . . . . . . . . 1 . . . . . . . . . . . Crush 3 | . . . . . . . . . . . . . . . . . 1 . . . . . . . 2 Escape Stasis 1 | . . . . . . . . . . . . . . . . . . . . . . . . . 1 Rewire 92 | . . . . . . . 13 . . . . . . . . 6 . 47 . . . . 26 . . Trap 7 | . . . . . . . . . 1 . . . . . 6 . . . . . . . . . . Miscellaneous . | . . . . . . . . . . . . . . . . . . . . . . . . . . Route ------- -11/Scrapyard -10/Materials (discovered 6 exits: *Mat x3 / *Min x2 / [*Sub]) -10/Mines (discovered 4 exits: *Mat x2 / [*Exi] / [*Sub]) -9/Materials (discovered 6 exits: *Mat x3 / [*Min] / *Sto x2) -9/Storage -9/Recycling -7/Factory (discovered 2 exits: *Low x2) -7/Lower Caves -7/Lower Caves (discovered 2 exits: *Fac / *Dat) -7/Data Miner -6/Proximity Caves -6/Factory (discovered 2 exits: Fac / *Low) -6/Lower Caves -6/Lower Caves (discovered 2 exits: *Fac / *Zio) -6/Zion (discovered 2 exits: [*Dee] / [*Pro]) -6/Deep Caves -5/Proximity Caves -5/Factory (discovered 4 exits: Fac x2 / *Ext x2) -5/Extension (discovered 2 exits: *Fac / *Cet) -5/Cetus (discovered 2 exits: *Fac / [*Arc]) -5/Archives (discovered 2 exits: *Fac / *Hub) -5/Hub_04(d) (discovered 4 exits: *Fac x4) -4/Factory (discovered 2 exits: *Upp x2) -4/Upper Caves (discovered 2 exits: [*Upp] / *War) -4/Upper Caves (discovered 2 exits: [*Res] / *War) -4/Warlord History --------- Turn | Location | Event 17 | -11/Scrapyard | Discovered new exit (range 16) 115 | -11/Scrapyard | Entered Materials 183 | -10/Materials | Discovered new exit (range 15) 304 | -10/Materials | Discovered new exit (range 12) 309 | -10/Materials | Build established: Mutant 363 | -10/Materials | Discovered new exit (range 12) 372 | -10/Materials | Central database locked down 384 | -10/Materials | Discovered new exit (range 6) 545 | -10/Materials | Discovered new exit (range 10) 584 | -10/Materials | Discovered new exit (range 9) 798 | -10/Materials | Learned location of 2 exits from Subcaves 862 | -10/Materials | Identified exit to Mines 915 | -10/Materials | Learned Storage emergency access door positions 990 | -10/Materials | Learned 2 Mines zone layouts 1015 | -10/Materials | Learned 2 Mines zone layouts 1048 | -10/Materials | Learned Storage emergency access door positions 1091 | -10/Materials | Learned Storage security intel 1159 | -10/Materials | Entered Mines 1235 | -10/Mines | A weapon hastily lodged in a ceiling crevice suddenly fell to the ground 1247 | -10/Mines | Discovered new exit (range 12) 1267 | -10/Mines | Learned location of Storage (-9) 1316 | -10/Mines | Deemed a non-threat by the Exiles lab entrance 1316 | -10/Mines | Discovered new exit (range 5) 1339 | -10/Mines | Discovered new exit (range 8) 1419 | -10/Mines | Received a Mining Laser from a helpful Derelict 1618 | -10/Mines | Received a Rocket Launcher from a helpful Derelict 1664 | -10/Mines | Discovered new exit (range 10) 1763 | -10/Mines | Met a Derelict shopkeep closing up shop 1841 | -10/Mines | Entered Materials 1841 | -9/Materials | Evolved 2 slots: Propulsion x1, Utility x1 1948 | -9/Materials | Lost 3 parts (1p1n1w) 2083 | -9/Materials | Discovered new exit (range 14) 2183 | -9/Materials | Identified exit to Materials 2424 | -9/Materials | Discovered exit to Materials (range 5) 2494 | -9/Materials | Lost 3 parts (2n1u) 2607 | -9/Materials | Discovered new exit (range 11) 2818 | -9/Materials | Discovered new exit (range 15) 2994 | -9/Materials | Learned location of Zion (-6) 3022 | -9/Materials | Learned Storage terminal intel 3054 | -9/Materials | Learned location of 1 exit from Storage 3076 | -9/Materials | Identified exit to Storage 3168 | -9/Materials | Entered Storage 3169 | -9/Storage | Identified exit to Recycling 3172 | -9/Storage | Loaded intel: 15 terminal locations 3305 | -9/Storage | Lost 5 parts (1p3n1u) 3358 | -9/Storage | Garrison activated, responded to threat 3402 | -9/Storage | Core integrity fell below 50% 3515 | -9/Storage | Garrison activated, responded to threat 3568 | -9/Storage | First assault squad dispatched 3600 | -9/Storage | Core integrity fell below 20% 3661 | -9/Storage | Used back door to open Recycling access 3664 | -9/Storage | Entered Recycling 3742 | -9/Recycling | Build established: Scavenger-Mutant 4032 | -9/Recycling | Scanned before Scraplab entrance 4046 | -9/Recycling | Entered Scraplab 4051 | -9/Recycling | Angered Scraplab inhabitants 4084 | -9/Recycling | Found Prototype Device 4086 | -9/Recycling | Identified Scrap Engine 4112 | -9/Recycling | Lost 4 parts (2n1u1w) 4351 | -9/Recycling | Build established: Mutant 4522 | -9/Recycling | Learned 2 Materials zone layouts 4530 | -9/Recycling | Discovered new exit (range 16) 4579 | -9/Recycling | Learned Materials emergency access door positions 4626 | -9/Recycling | Learned location of 1 exit from Recycling 4702 | -9/Recycling | Learned 4 Recycling zone layouts 4709 | -9/Recycling | Learned Materials stockpile data 4731 | -9/Recycling | Build established: Construct 4756 | -9/Recycling | Learned Storage trap positions 4847 | -9/Recycling | Learned Storage security intel 5527 | -9/Recycling | Entered Factory 5527 | -7/Factory | Evolved 4 slots: Propulsion x2, Utility x1, Weapon x1 5700 | -7/Factory | Identified exit to Lower Caves 6376 | -7/Factory | Fabricated Huge Storage Unit? 6593 | -7/Factory | Entered Lower Caves 7231 | -7/Lower Caves | Encountered a Warlord checkpoint 7233 | -7/Lower Caves | Spotted B-75 Beast 7270 | -7/Lower Caves | Destroyed B-75 Beast 7275 | -7/Lower Caves | Attracted the attention of an 0b10 outpost 7328 | -7/Lower Caves | Lost 3 allies 7337 | -7/Lower Caves | Destroyed 7 combat bots 7578 | -7/Lower Caves | Learned 8 Factory zone layouts 7693 | -7/Lower Caves | Discovered new exit (range 14) 8195 | -7/Lower Caves | Entered another Lower Caves area 8195 | -7/Lower Caves | Accompanied by 1 ally 8306 | -7/Lower Caves | Found DCF Scrap (12 items) 8341 | -7/Lower Caves | Discovered new exit (range 3) 8727 | -7/Lower Caves | Attacked by a faux Warlord 9693 | -7/Lower Caves | Discovered new exit (range 15) 10105 | -7/Lower Caves | Entered Data Miner 10105 | -7/Data Miner | Discovered new exit (range 6) 10122 | -7/Data Miner | Met Data Miner 10141 | -7/Data Miner | Learned location of Section 7 (-2) 10141 | -7/Data Miner | Acquired the access code to Warlord's prototype stash 10154 | -7/Data Miner | Received God Mode back door access code from Data Miner 10160 | -7/Data Miner | Destroyed Data Miner 10163 | -7/Data Miner | Interfaced with the Data Conduit 10165 | -7/Data Miner | Found Prototype Hackware 10256 | -7/Data Miner | Found Exp. Thermal Shield 10347 | -7/Data Miner | Lost 4 parts (1p1u2w) 10379 | -7/Data Miner | Found Exp. Thermal Shield 10391 | -7/Data Miner | Found Prototype Hackware 10582 | -7/Data Miner | Entered Proximity Caves 10880 | -6/Proximity Caves | Spotter reported a threat 10905 | -6/Proximity Caves | Spotter reported a threat 11306 | -6/Proximity Caves | Acquired the password to a Derelict Tinkerer's latest research 11313 | -6/Proximity Caves | Found Prototype Special Weapon 11425 | -6/Proximity Caves | Discovered new exit (range 15) 11510 | -6/Proximity Caves | Caught by Unaware searching for contraband prototypes 11547 | -6/Proximity Caves | Entered Factory 11547 | -6/Factory | Evolved 2 slots: Utility x1, Weapon x1 11548 | -6/Factory | Identified exit to Factory 11548 | -6/Factory | Identified exit to Lower Caves 11549 | -6/Factory | Loaded intel: 270 machine locations 11774 | -6/Factory | Identified Molecular Deconstructor 11964 | -6/Factory | Entered Lower Caves 12606 | -6/Lower Caves | Attracted the attention of an 0b10 checkpoint 12950 | -6/Lower Caves | Learned Factory stockpile data 13310 | -6/Lower Caves | Discovered new exit (range 7) 13457 | -6/Lower Caves | Entered another Lower Caves area 13463 | -6/Lower Caves | Discovered exit to Factory (range 8) 13523 | -6/Lower Caves | Found Alien Artifact 13523 | -6/Lower Caves | Identified Core Expander 13523 | -6/Lower Caves | Installed Core Expander, added new Propulsion slot 14330 | -6/Lower Caves | Learned location of 1 exit from Factory 14398 | -6/Lower Caves | Learned 4 Factory zone layouts 15635 | -6/Lower Caves | Discovered new exit (range 10) 17514 | -6/Lower Caves | Entered Zion 17579 | -6/Zion | Received a hallucinogenic algorithm 17599 | -6/Zion | Discovered new exit (range 8) 17628 | -6/Zion | Visited the Megawrench Repair Shop 17631 | -6/Zion | Megawrench repaired 7 parts 17672 | -6/Zion | Attacked by Zionites 17672 | -6/Zion | Spotted J8-YFB(B) 17672 | -6/Zion | Spotted 48-BP9(B) 17776 | -6/Zion | Destroyed J8-YFB(B) 17783 | -6/Zion | Destroyed 48-BP9(B) 18409 | -6/Zion | Found Prototype Special Weapon 18409 | -6/Zion | Identified RU-N14's Throwing Claymores 18570 | -6/Zion | Discovered new exit (range 4) 18570 | -6/Zion | Saw the warning signs outside the Deep Caves entrance 18820 | -6/Zion | Found Prototype Device 18823 | -6/Zion | Identified Bomb Factory No. 2 18895 | -6/Zion | Found RU-N14's Throwing Claymores 18898 | -6/Zion | Found RU-N14's Throwing Claymores 18900 | -6/Zion | Found RU-N14's Throwing Claymores 18903 | -6/Zion | Found RU-N14's Throwing Claymores 21024 | -6/Zion | Entered Deep Caves 21307 | -6/Deep Caves | Attacked by Z-Imprinter 21353 | -6/Deep Caves | Destroyed Z-Imprinter 21386 | -6/Deep Caves | Found Prototype Protection 21387 | -6/Deep Caves | Identified Zio. Weapon Casing 21401 | -6/Deep Caves | Found Prototype Device 21413 | -6/Deep Caves | Identified Zio. Metafield Generator 21419 | -6/Deep Caves | Found Zio. Weapon Casing 22268 | -6/Deep Caves | Found Zio. Weapon Casing 22286 | -6/Deep Caves | Found Zio. Weapon Casing 22731 | -6/Deep Caves | Discovered new exit (range 6) 22842 | -6/Deep Caves | Spotted AG-63426 22923 | -6/Deep Caves | Entered Proximity Caves 22945 | -5/Proximity Caves | Found Alien Artifact 23025 | -5/Proximity Caves | Spotter reported a threat 23107 | -5/Proximity Caves | Learned Factory terminal intel 23633 | -5/Proximity Caves | Spotted B-75 Beast 23639 | -5/Proximity Caves | Destroyed B-75 Beast 23975 | -5/Proximity Caves | Learned 4 Factory zone layouts 24308 | -5/Proximity Caves | Attracted the attention of an 0b10 outpost 24383 | -5/Proximity Caves | Destroyed 10 combat bots 24972 | -5/Proximity Caves | Discovered exit to Factory (range 16) 25754 | -5/Proximity Caves | Entered Factory 25754 | -5/Factory | Evolved 2 slots: Power x1, Utility x1 25755 | -5/Factory | Identified exit to Extension 25757 | -5/Factory | Identified exit to Factory 25759 | -5/Factory | Loaded intel: 254 machine locations 25760 | -5/Factory | Loaded intel: 28 terminal locations 26526 | -5/Factory | Noticed a derelict Sapper rigging charges 26534 | -5/Factory | Cargo convoy interrupted 26660 | -5/Factory | Intercept squad dispatched 26675 | -5/Factory | Spotted Tracker 26677 | -5/Factory | Destroyed Tracker 26702 | -5/Factory | Found Exp. Targeting Computer 26707 | -5/Factory | Found Exp. Phase Shifter 26734 | -5/Factory | Spotted Combat Programmer 26734 | -5/Factory | Entered Extension 26735 | -5/Extension | Loaded intel: 37 machine locations 26967 | -5/Extension | Rescued a captive Derelict 27229 | -5/Extension | Rescued a captive Derelict 27320 | -5/Extension | Rescued a captive Derelict 27329 | -5/Extension | Spotted B-75 Beast 27333 | -5/Extension | Destroyed B-75 Beast 27343 | -5/Extension | Spotted B-75 Beast 27344 | -5/Extension | Destroyed B-75 Beast 27466 | -5/Extension | Rescued a captive Derelict 27514 | -5/Extension | Rescued a captive Derelict 27587 | -5/Extension | Rescued a captive Derelict 27589 | -5/Extension | Rescued a captive Derelict 27770 | -5/Extension | Rescued a captive Derelict 27858 | -5/Extension | Rescued A7 27919 | -5/Extension | Discovered exit to Factory (range 10) 27921 | -5/Extension | Discovered new exit (range 6) 27934 | -5/Extension | First assault squad dispatched 27972 | -5/Extension | Disrupted transfer network 28006 | -5/Extension | Lost 9 allies 28124 | -5/Extension | Entered Cetus 28124 | -5/Cetus | Accompanied by 5 allies (A7) 28125 | -5/Cetus | Loaded intel: 24 machine locations 28129 | -5/Cetus | Acquired a Cetus Manufacturing Module code from A7 28142 | -5/Cetus | Spotted Cetus Guard 28143 | -5/Cetus | Spotted Cetus Guard 28146 | -5/Cetus | Destroyed Cetus Guard 28146 | -5/Cetus | Spotted Cetus Guard 28155 | -5/Cetus | Allies destroyed Cetus Guard 28155 | -5/Cetus | Spotted Cetus Guard 28165 | -5/Cetus | Allies destroyed Cetus Guard 28168 | -5/Cetus | Destroyed Cetus Guard 28236 | -5/Cetus | Started Cetus Manufacturing Module 28261 | -5/Cetus | Manufactured an Enhanced Grunt 28286 | -5/Cetus | Manufactured an Enhanced Grunt 28297 | -5/Cetus | Escorted A7 to Cetus Mainframe 28311 | -5/Cetus | Manufactured an Enhanced Grunt 28336 | -5/Cetus | Manufactured an Enhanced Grunt 28341 | -5/Cetus | Discovered new exit (range 16) 28361 | -5/Cetus | Manufactured an Enhanced Grunt 28369 | -5/Cetus | Spotted Cetus Guard 28369 | -5/Cetus | Spotted Cetus Guard 28369 | -5/Cetus | Destroyed Cetus Guard 28371 | -5/Cetus | Destroyed Cetus Guard 28372 | -5/Cetus | Spotted Cetus Guard 28372 | -5/Cetus | Spotted Cetus Guard 28384 | -5/Cetus | Destroyed Cetus Guard 28385 | -5/Cetus | Allies destroyed Cetus Guard 28390 | -5/Cetus | Discovered exit to Factory (range 16) 28400 | -5/Cetus | Met Revision 17 28507 | -5/Cetus | Entered Archives 28507 | -5/Archives | Accompanied by 8 allies (A7) 28508 | -5/Archives | Loaded intel: 8 machine locations 28512 | -5/Archives | Received a hacking code to weaken MAIN.C 28601 | -5/Archives | Build established: Commander-Construct 28668 | -5/Archives | Discovered exit to Factory (range 15) 28694 | -5/Archives | Discovered new exit (range 16) 30292 | -5/Archives | Entered Hub_04(d) 30292 | -5/Hub_04(d) | Accompanied by 6 allies 30292 | -5/Hub_04(d) | Discovered exit to Factory (range 11) 30293 | -5/Hub_04(d) | Loaded intel: 110 machine locations 30380 | -5/Hub_04(d) | Network Hub disabled 30389 | -5/Hub_04(d) | Network Hub disabled 30405 | -5/Hub_04(d) | Spotted Lightning 30407 | -5/Hub_04(d) | Allies destroyed Lightning 30408 | -5/Hub_04(d) | Spotted Lightning 30441 | -5/Hub_04(d) | Destroyed Lightning 30442 | -5/Hub_04(d) | Lost 6 allies 30466 | -5/Hub_04(d) | Found Exp. EM Shield 30489 | -5/Hub_04(d) | Found Exp. Phase Shifter 30497 | -5/Hub_04(d) | Found Corrupted Prototype Energy Cannon 30508 | -5/Hub_04(d) | Destroyed 9 combat bots 30517 | -5/Hub_04(d) | Network Hub disabled 30576 | -5/Hub_04(d) | Network Hub disabled 30696 | -5/Hub_04(d) | Build established: Construct 30963 | -5/Hub_04(d) | Intercept squad dispatched 30970 | -5/Hub_04(d) | Spotted Tracker 30971 | -5/Hub_04(d) | Destroyed Tracker 30995 | -5/Hub_04(d) | Spotted Combat Programmer 31005 | -5/Hub_04(d) | Destroyed Combat Programmer 31032 | -5/Hub_04(d) | Found Prototype Energy Gun 31608 | -5/Hub_04(d) | Intercept squad dispatched 31619 | -5/Hub_04(d) | Spotted Tracker 31621 | -5/Hub_04(d) | Destroyed Tracker 31635 | -5/Hub_04(d) | Spotted Combat Programmer 31651 | -5/Hub_04(d) | Entered Factory 31651 | -4/Factory | Evolved 2 slots: Power x1, Utility x1 31652 | -4/Factory | Loaded intel: 296 machine locations 31720 | -4/Factory | Identified Quantum Router 31794 | -4/Factory | Identified exit to Upper Caves 31820 | -4/Factory | Fabricated Mak. Microdissipator Network? 32166 | -4/Factory | Intercept squad dispatched 32197 | -4/Factory | Spotted Tracker 32198 | -4/Factory | Spotted Tracker 32200 | -4/Factory | Destroyed Tracker 32211 | -4/Factory | Destroyed Tracker 32215 | -4/Factory | Spotted Combat Programmer 32222 | -4/Factory | Destroyed Combat Programmer 32228 | -4/Factory | Spotted Combat Programmer 32285 | -4/Factory | Repaired Centrium Medium Armor Plating 32286 | -4/Factory | Build established: Hauler-Construct 32330 | -4/Factory | Fabricated Weapon Mount (x2) 32477 | -4/Factory | Fabricated Mak. Microdissipator Network (x1) 32555 | -4/Factory | Identified Deep Network Scanner 32555 | -4/Factory | Identified Dimensional Node Initializer 32646 | -4/Factory | Destroyed Combat Programmer 32792 | -4/Factory | Entered Upper Caves 33061 | -4/Upper Caves | A Derelict revealed a hidden shortcut to "reach the base" 34576 | -4/Upper Caves | Discovered new exit (range 6) 34953 | -4/Upper Caves | Attacked by a delusional Derelict stockpiling Unaware 35110 | -4/Upper Caves | Entered another Upper Caves area 35110 | -4/Upper Caves | Accompanied by 4 allies 35111 | -4/Upper Caves | Identified exit to Warlord 35188 | -4/Upper Caves | Learned Research emergency access door positions 35252 | -4/Upper Caves | Discovered new exit (range 10) 35805 | -4/Upper Caves | Attracted the attention of an 0b10 checkpoint 36535 | -4/Upper Caves | Encountered a Warlord checkpoint 36717 | -4/Upper Caves | Attracted the attention of an 0b10 base 37226 | -4/Upper Caves | Entered Warlord 37226 | -4/Warlord | Accompanied by 2 allies 37266 | -4/Warlord | System corruption cleaned by Quarantine Array 37271 | -4/Warlord | Attacked by Warlord forces 37287 | -4/Warlord | Spotted VA-TY3(B) 37288 | -4/Warlord | Spotted BT-7L1(B) 37303 | -4/Warlord | Destroyed VA-TY3(B) 37305 | -4/Warlord | Destroyed BT-7L1(B) 37358 | -4/Warlord | Lost 4 parts (2p2u) 37382 | -4/Warlord | Destroyed 9 combat bots 37426 | -4/Warlord | Found Prototype Ballistic Cannon 37429 | -4/Warlord | Warlord's base attacked by MAIN.C 37430 | -4/Warlord | Found Prototype Ballistic Cannon 37536 | -4/Warlord | Learned Armory terminal intel 37536 | -4/Warlord | Learned Armory repair station intel 37536 | -4/Warlord | Learned 4 Research zone layouts 37536 | -4/Warlord | Learned 4 Armory zone layouts 37536 | -4/Warlord | Learned 4 Testing zone layouts 37729 | -4/Warlord | Core integrity fell below 50% 37735 | -4/Warlord | System corruption reached 10% 37760 | -4/Warlord | Destroyed 9 combat bots 37779 | -4/Warlord | Warlord forces counterattacked 38034 | -4/Warlord | Spotted Striker 38042 | -4/Warlord | Destroyed Striker 38104 | -4/Warlord | Warlord base infiltrated, sounded retreat 38192 | -4/Warlord | Build established: Construct 38248 | -4/Warlord | Destroyed Warlord 38260 | -4/Warlord | Spotted Executioner 38266 | -4/Warlord | Destroyed Executioner 38287 | -4/Warlord | Destroyed 12 combat bots 38431 | -4/Warlord | Spotted Striker 38439 | -4/Warlord | Spotted Striker 38447 | -4/Warlord | Destroyed Striker 38494 | -4/Warlord | Spotted Executioner 38499 | -4/Warlord | Destroyed Executioner 38540 | -4/Warlord | Lost 4 parts (1p2u1w) 38553 | -4/Warlord | Destroyed 27 combat bots 38553 | -4/Warlord | Crushed by falling debris 38557 | -4/Warlord | Found Exp. Targeting Computer 38638 | -4/Warlord | Destroyed 10 combat bots 38645 | -4/Warlord | Core integrity fell below 20% 38672 | -4/Warlord | Spotted Striker 38678 | -4/Warlord | Spotted Striker 38687 | -4/Warlord | Lost 17 parts (4p1n5u7w) 38700 | -4/Warlord | Destroyed by G-67 Veteran with Plasma Rifle Last Messages --------------- 38660_ G-73 Enforcer shuts down. 38683_ Scrap Engine constructs Kinetic Autocannon Construct/C. 38683_ System corrupted: Weapon Mount rejected. 38687_ Slammed into X-87 Electro. 38692_ Acquired 6 matter. 38692_ Scrap Engine destroyed. 38697_ Triggered Fire Trap. 38697_ Burning plasma bursts from the floor. 38697_ Chain reaction triggered in Antimatter Reactor. 38698_ I-47 Archangel heat damages core (-22). 38698_ G-67 Veteran overheating. 38698_ Kinetic Autocannon Construct/C destroyed. 38698_ Centrium Light Armor Plating destroyed. 38699_ I-47 Archangel heat spikes uncontrollably. 38700_ Treaded Centrium Exoskeleton destroyed. 38700_ Treaded Centrium Exoskeleton core remains intact and functional. Map ----- +----------------------------------------------------+ | ??# "!!=% =%=!%==!=%=%!*%!%!=|=[[%%===%!! !!= | | ??# !! #=!%!%%| ===%=%!=[!=[!=%%|=%]!!=%*%% !=%= | | ??# / !*"%=*= %%/ !*!**[%[%==!=%%%=*!%=%[%=* !=] | | ??# // #[###"#"" !![[ =!!/%!##!####[/##! | | ??# ????# #?# ### !!""" !##[=? = # | | ?????#+?## ##??## =""" #?? # | | ?????# ## #???## !% #?? %= #### # | | ?????# #????# [% % #?? ] && ??# # | | ?????#### #?######" "" ##? && ??## | | ????????## ##?# " "" #?# ! ???# # | | ?????????# #### # """ "?# ! ]???#= | | ?????????# + # "" "?# ???#%! # | | ?????????###### # """ #####"##"######=! # | | ??????????????# # % # | | ??????????????# + % # | | ??????????????# % #g # | | ??????????????# # #######+####### # | | ??????????????# #g ####+##### #?# # | | ??????????????# ! # # ## #?# # | | ??????????????#% # # ## #?# + | | ??????????????# # # ## """" #?# # | | ??????????????###;+## # ## """" #?# # | | ????????????????## px ;i ## """" #?# # | | ?????????????????#p pKg ; ## """" #?# # | | ?????????????????# g ## #?? # | | ?????????????????# % g ;@ ############?? # | | ?????????????????###;;;;;########????????????? # | | ?????????????????# ???????????????????? # | | ?????????????????# ggi ???????????????????? # | | ?????????????????# g ??????????????????? # | | ?????????????????# """ """ #?????????????????????? | | ?????????????????# """ """ #?????????????????????? | | ?????????????????# """ """ #?????????????????????? | | ?????????????????#? #?????????????????????? | | ???????????????????? ?? #?????????????????????? | | ???????????????????####???##?????????????????????? | | ?????????????????????????????????????????????????? | | ?????????????????????????????????????????????????? | | ?????????????????????????????????????????????????? | | ?????????????????????????????????????????????????? | | | | | | | | | | | | | | | | | | | | | +----------------------------------------------------+ Best States ------------- Heat Dissipation 95 Coolant Potential 100 Energy Generation 77 Energy Capacity 1208 Matter Stores 300 Matter Capacity 300 Sight Range 20 Robot Scan Range 18 Terrain Scan Density 10 Jamming Range 14 Power Amplification 20 Armor Coverage 600 Resistance: KI 25 Resistance: TH 30 Resistance: EM 75 Weapon Shielding 100 Weapon Cycling 15 Phase Shifting 20 Evasion (%) 70 Targeting Accuracy 32 Recoil Reduction 6 Matter Filtering 50 Offensive Hacking 12 Defensive Hacking 12 Trap Extractor Capacity 6 Item Schematics ----------------- Cargo Storage Unit | -10/Materials | Hacked Huge Storage Unit | -9/Materials | Hacked Combat Drone Bay | -7/Data Miner | Free Lgt. Regenerative Plating | -7/Data Miner | Free Biomechanical Wings | -7/Data Miner | Free Exp. Weapon Shielding | -7/Data Miner | Free Com. Ion Cannon | -7/Data Miner | Free Linear Gravjet | -7/Data Miner | Free Imp. Component Analysis Suite | -7/Data Miner | Free Wave Gun | -7/Data Miner | Free Drone Bay | -6/Zion | Archive Imp. Focal Shield | -6/Zion | Archive Power Amplifier | -6/Zion | Archive Antigrav System | -6/Zion | Archive Enh. Gauss Cannon | -6/Zion | Archive Enh. Optical Array | -6/Zion | Archive Hyp. Mass Driver | -6/Zion | Archive Adv. Reaction Control System | -6/Zion | Archive Hpw. Shock Rifle | -6/Zion | Archive Tesla Rifle | -6/Zion | Archive Nuclear Pulse Thruster | -6/Zion | Archive Lrn. Phase Cannon | -6/Zion | Archive Imp. Coolant Injector | -6/Zion | Archive Adv. Melee Analysis Suite | -6/Zion | Archive Weapon Mount | -5/Hub_04(d) | Hacked Mak. Microdissipator Network | -4/Factory | Scanalyzed Robot Schematics ------------------ H-66 Slayer | -7/Data Miner | Free M-14 Sweeper | -7/Data Miner | Free G-50 Soldier | -7/Data Miner | Free E-15 Imp | -7/Data Miner | Free W-25 Informer | -6/Zion | Archive T-07 Excavator | -6/Zion | Archive A-15 Conveyor | -6/Zion | Archive Fabricated ------------ Huge Storage Unit | x1 | -7/Factory Mak. Microdissipator Network | x1 | -4/Factory Weapon Mount | x2 | -4/Factory Mak. Microdissipator Network | x1 | -4/Factory Repaired ---------- Centrium Medium Armor Plating | 36% | -4/Factory Alien Tech Used ----------------- Core Expander Achievements -------------- None Challenges ------------ None Game ------ Seed CargoSchematicCarapace Manual? 0 Play Time 05:43:15 Cumulative 637.9 hours Start 2025.05.29 @ 23:45:59 End 2025.06.01 @ 06:02:18 Sessions 9 Manual Loads 0 Difficulty Rogue Special Mode None Game No. 142 Rogue 142 Adventurer 0 Explorer 0 Win Type - Total 38 Types 10/6/7/1/1/1/8/2/1/1 Lore% 69 Gallery% 83 Achievement% 79 Wizard Run 0 Options --------- Layout 1 ASCII 0 Keyboard 0 Movement Mouse Keybinds 0 Fullscreen 2 Font 24/Smallcaps Map View 50x35 Zoom Use 7% Tactical HUD 1 Map Filters NONE Filters NONE Steam 1 RUN: 18ce7261-cdba-446c-9f67-13a5603dfa10